Workbook

Sheet JANCAL (hidden)

Sheet Menu List (hidden)
A1: Jantri Calculation | B1: Calculator | C1: Find & Login | D1: Other
A2: Open Land | B2: Area Unit Convertor | C2: Jantri Rate | D2: ASR 1991
A3: Row House-Bungalows | B3: Age Calculator | C3: Circulars 1987-2007 | D3: ASR 2008
A4: Appartment-Flat | B4: Mas Convertor | C4: Circulars 1992-2023 | D4: ASR 2011
A5: Office-Shop | C5: Circulars 2023-2023 | D5: ASR 2023
A6: Lease-Residential | C6: Circulars Online | D6: ASR 2024 (Draft)
A7: Lease-Commercial | C7: Token Availability | D7: Schedule-I (Sec.-3)
A8: Old Jantri Calculator | C8: Any RoR | D8: Exit
C9: gARVI Login
C10: WhatsApp
C11: iRCMS
C12: iORA

Sheet Setup (hidden)
A1: Sr no | B1: Particulars | C1: Column1 | D1: Column2
A2: 1 | B2: Name | C2: CHANDULAL SUHAGIYA
A3: 2 | B3: Login ID | C3: Chandu@184
A4: 3 | B4: Login Password | C4: Chandu@103
A5: 4 | B5: What is your DOB ? | C5: 18/04/1967
A6: 5 | B6: What is your First School ? | C6: sarkari
A7: 6 | B7: HDD Serial no. | C7: 847093410
A8: 7 | B8: Master ID | C8: Krutik@97
A9: 8 | B9: Master Password | C9: Krutik@1997
A10: 9 | B10: Start Period | C10: 2026-01-01
A11: 10 | B11: End Period | C11: 2027-01-01
A12: 11 | B12: Demo Start Period | C12: 2025-12-15
A13: 12 | B13: Demo End Period | C13: 2025-12-22
A14: 13 | B14: Activation Key | C14: Krut-1005-1997
A15: 14 | B15: Demo User ID
A16: 15 | B16: Demo User Password
A17: 16 | B17: Practice Area (District) | C17: SURAT
A18: 17 | B18: Email Address | C18: cvsuhagiya@gmail.com
A19: 18 | B19: Current Date | C19: =TODAY() -> 2026-07-14 | D19: 2025-11-21
A20: 19 | B20: Mobile no | C20: 919824133501
A21: 20 | B21: OTP for Demo | C21: 573654
A22: 21 | B22: User Mobile no | C22: 9824133501
A23: 22 | B23: OTP for User | C23: 145782
C24: 2025-12-17T16:07:47

Sheet JancalLists (hidden)
A1: Surat
A2: અમલસાડી
A3: અંભેટી
A4: અંત્રોલી
A5: બગુમરા
A6: બલેશ્વર
A7: બારાસડી
A8: ભુતપોર
A9: ચલથાણ
A10: દસ્તાન
A11: ધામડોદ
A12: એના
A13: ઘલુડા
A14: ગાંગપુર
A15: ગોટીયા
A16: હરિપુરા
A17: ઈસરોલી
A18: ઈટાળવા
A19: જતપોર
A20: જોળવા
A21: કડોદરા
A22: કણાવ
A23: કરાળા
A24: કરણ
A25: કારેલી
A26: ખરભાસી
A27: લાખણપોર
A28: લીંગડ
A29: માખીગા
A30: મલેકપોર
A31: નીયોલ
A32: પલસાણા
A33: પારડી પાતા
A34: પીસાદ
A35: પુણી
A36: સાંકી
A37: સેઢાવ
A38: સિયોદ
A39: સોયાણી
A40: તળોદરા
A41: તરાજ
A42: તાંતીઝગડા
A43: તાંતીથૈયા
A44: તુંડી
A45: વડદલા
A46: વણેસા
A47: વંઝોડીયા
A48: વાંકાનેડા
A49: વરેલી

Sheet Open Land
C2: : સ્થાવર મિલકતનાં મુલ્યાંકન માટેનું ગણત્રી પત્રક :
C4: દસ્તાવેજનો પ્રકાર : | D4: 20(ખ), માલિકી ફેરખત-ગુજરાત સહકારી મંડળી અઘિનિયમ,1961 | I4: રહેણાંક જંત્રીનાં ભાવ | J4: 470
C6: સબ-રજીસ્ટ્રારશ્રી : | D6: સુરત-9 (અબ્રામા) | G6: ગામ : | H6: મોટાવરાછા | I6: વેલ્યુઝોન : | J6: 25/11
C8: સીટી સર્વે વોર્ડ : | E8: સીટી સર્વે ઓફીસ : | I8: સીટી સર્વે નંબર :
C10: બ્લોક/સર્વે નંબર : | D10: 298 | E10: ટી.પી.સ્કીમ નંબર : | I10: એફ.પી.નંબર :
C12: જમીનનો પ્રકાર : | D12: જંત્રી ગુણાંક : | E12: જમીનનું ક્ષેત્રફળ : | G12: વ.વ.હિસ્સો | H12: જમીનનો દર : | I12: જમીનની કિંમત :
C14: ખેતી પિયત જમીન | D14: =INDEX($D$35:$H$38, MATCH($I$4, $C$35:$C$38, 0), MATCH($C$14, $D$34:$H$34, 0)) -> 0.65 | E14: 8092 | G14: 0 | H14: =(J4*D14)*2 -> 611 | I14: =(E14+G14)*(H14) -> 4944212
C16: કુલ્લે | E16: =SUM(E14) -> 8092 | G16: =SUM(G14) -> 0 | I16: =SUM(I14) -> 4944212
C18: અવેજની રકમ | E18: =+I16 -> 4944212 | H18: રજીસ્ટ્રેશન ફીનો પ્રકાર : | J18: સ્ત્રી એક્ઝીક્યુટન્ટ
C19: ચૂકવેલ અવેજની રકમ | E19: 4944212 | H19: રજીસ્ટ્રેશન ફી | J19: =ROUNDUP(IF(J18="રેગ્યુલર", E19*1%, IF(J18="સ્ત્રી એક્ઝીક્યુટન્ટ માફી", E19*0%, 0)),-1) -> 0
C20: સ્ટેમ્પ ડ્યુટીનો દર | E20: 0.049 | H20: ફોલીયો ચાર્જ | I20: 35 | J20: =I20*20 -> 700
C21: વાપરવાપાત્ર સ્ટેમ્પ | E21: =ROUND(E19*E20,-1) -> 242270 | H21: વકીલ ફી | J21: 0
C22: વાપરેલ ડ્યુટી | E22: 242270 | H22: કુલ ખર્ચ | I22: =ROUNDUP(SUM(J19+J20+J21),-1) -> 700
C24: જમીનની વિગત :
C34: વિગત | D34: રહેણાંક જમીન | E34: ઔઘોગિક જમીન | F34: વાણિજયક જમીન | G34: ખેતી પિયત જમીન | H34: ખેતી બિનપિયત જમીન | J34: રેગ્યુલર
C35: રહેણાંક જંત્રીનાં ભાવ | D35: 1 | E35: 1.5 | F35: 2 | G35: 0.65 | H35: 0.55 | J35: સ્ત્રી એક્ઝીક્યુટન્ટ
C36: વાણિજ્યક જંત્રીના ભાવ | D36: 1 | E36: 1 | F36: 1 | G36: 1 | H36: 1 | J36: અન્ય માફી
C37: ઔઘોગિક જમીનના ભાવ | D37: 1 | E37: 1 | F37: 1 | G37: 1 | H37: 1
C38: ખેતીની જંત્રીના ભાવ | D38: 1.5 | E38: 2 | F38: 2.5 | G38: 1 | H38: 1

Sheet Row House-Bungalows (hidden)
B2: : સ્થાવર મિલકતનાં મુલ્યાંકન માટેનું ગણત્રી પત્રક :
B4: દસ્તાવેજનો પ્રકાર : | C4: 20(ક), માલિકી ફેરખત-સ્થાવર મિલકત | H4: જંત્રીનો દર : | I4: 13000
B6: સબ-રજીસ્ટ્રારશ્રી : | C6: સુરત-2 (ઉધના) | F6: ગામ : | G6: ઉધના | H6: વેલ્યુઝોન : | I6: 11/43
B8: સીટી સર્વે વોર્ડ : | D8: સીટી સર્વે ઓફીસ : | F8: સીટી સર્વે નંબર : | H8: માળની વિગત | I8: 2
B10: બ્લોક/સર્વે નંબર : | C10: 32, 35, 44, 55 | D10: ટી.પી.સ્કીમ નંબર : | H10: એફ.પી.નંબર :
B12: જમીનનો પ્રકાર : | C12: બાંધકામ વિસ્તાર | D12: બાંધકામ સ્થિતિ | E12: જમીનનું ક્ષેત્રફળ | F12: વ.વ.હિસ્સો | G12: કુલ એરીયા | H12: જમીનનો દર | I12: જમીનની કિંમત :
B14: ઔધોગિક જમીન | C14: શહેરી | D14: પૂર્ણ બાંધકામવાળી મિલકત | E14: 148.64 | F14: 46.45 | G14: =E14+F14 -> 195.09 | H14: =(+I4*2) -> 26000 | I14: =ROUNDUP(G14*H14,-1) -> 5072340
B16: માળની વિગત | C16: બાંધકામ પ્રકાર | D16: કારપેટ | E16: ભાવ | F16: બાંધકામ કિંમત | G16: ઉંમર | H16: ઘસારો | I16: બાંધકામ કિંમત
B18: ગ્રાઉન્ડ ફલોર | C18: ઔઘોગિક આર.સી.સી.શેડ | D18: 142.61 | E18: =INDEX(B52:D57, MATCH(C18, B52:B57, 0), MATCH(C14, B52:D52, 0)) -> 17250 | F18: =ROUNDUP(IF(D16="બિલ્ટઅપ", D18*E18, D18*1.2*E18),-1) -> 2952030 | G18: 12 | H18: =ROUNDDOWN(F18 * (IF(G18 > 50, 60%, G18 * 1.2%)), -1) -> 425090 | I18: =ROUNDUP(F18-H18,-1) -> 2526940
B19: પહેલો માળ | C19: ઔઘોગિક આર.સી.સી.શેડ | D19: 142.61 | E19: =INDEX(B52:D57, MATCH(C19, B52:B57, 0), MATCH(C14, B52:D52, 0)) -> 17250 | F19: =ROUNDUP(IF(D16="બિલ્ટઅપ", D19*E19, D19*1.2*E19),-1) -> 2952030 | G19: 12 | H19: 425090 | I19: =ROUNDUP(IF(D14="સ્લેબ વગરનું અધુરૂ બાંધકામ", (F19-H19)*50%, IF(D14="સ્લેબ સાથેનું અધુરૂ બાંધકામ", (F19-H19)*70%, (F19-H19))), 0) -> 2526940
B20: બીજો માળ | C20: ઔઘોગિક પતરાવાળો શેડ | D20: 142.61 | E20: =INDEX(B52:D57, MATCH(C20, B52:B57, 0), MATCH(C14, B52:D52, 0)) -> 12750 | F20: =ROUNDUP(IF(D16="બિલ્ટઅપ", D20*E20, D20*1.2*E20),-1) -> 2181940 | G20: 12 | H20: 314190 | I20: =ROUNDUP(IF(D14="સ્લેબ વગરનું અધુરૂ બાંધકામ", (F20-H20)*50%, IF(D14="સ્લેબ સાથેનું અધુરૂ બાંધકામ", (F20-H20)*70%, (F20-H20))), 0) -> 1867750
B21: બીજો માળ | C21: ઔઘોગિક આર.સી.સી.શેડ | D21: 33.79 | E21: =INDEX(B52:D57, MATCH(C21, B52:B57, 0), MATCH(C14, B52:D52, 0)) -> 17250 | F21: =ROUNDUP(IF(D16="બિલ્ટઅપ", D21*E21, D21*1.2*E21),-1) -> 699460 | G21: 35 | H21: 293770 | I21: =ROUNDUP(IF(D14="સ્લેબ વગરનું અધુરૂ બાંધકામ", (F21-H21)*50%, IF(D14="સ્લેબ સાથેનું અધુરૂ બાંધકામ", (F21-H21)*70%, (F21-H21))), 0) -> 405690
B22: ત્રીજો માળ | C22: ઔઘોગિક આર.સી.સી.શેડ | D22: 40.67 | E22: =INDEX(B52:D57, MATCH(C22, B52:B57, 0), MATCH(C14, B52:D52, 0)) -> 17250 | F22: =ROUNDUP(IF(D16="બિલ્ટઅપ", D22*E22, D22*1.2*E22),-1) -> 841870 | G22: 13 | H22: 131330 | I22: =ROUNDUP(IF(D14="સ્લેબ વગરનું અધુરૂ બાંધકામ", (F22-H22)*50%, IF(D14="સ્લેબ સાથેનું અધુરૂ બાંધકામ", (F22-H22)*70%, (F22-H22))), 0) -> 710540
B23: ચોથો માળ | C23: ઔઘોગિક પતરાવાળો શેડ | D23: 40.67 | E23: =INDEX(B52:D57, MATCH(C23, B52:B57, 0), MATCH(C14, B52:D52, 0)) -> 12750 | F23: =ROUNDUP(IF(D16="બિલ્ટઅપ", D23*E23, D23*1.2*E23),-1) -> 622260 | G23: 0 | H23: 0 | I23: =ROUNDUP(IF(D14="સ્લેબ વગરનું અધુરૂ બાંધકામ", (F23-H23)*50%, IF(D14="સ્લેબ સાથેનું અધુરૂ બાંધકામ", (F23-H23)*70%, (F23-H23))), 0) -> 622260
B24: ચોથો માળ | C24: આર.સી.સી ફ્રેમ સ્ટ્રકચર | D24: 0 | E24: =INDEX(B52:D57, MATCH(C24, B52:B57, 0), MATCH(C14, B52:D52, 0)) -> 14850 | F24: =ROUNDUP(IF(D16="બિલ્ટઅપ", D24*E24, D24*1.2*E24),-1) -> 0 | G24: 0 | H24: 0 | I24: =ROUNDUP(IF(D14="સ્લેબ વગરનું અધુરૂ બાંધકામ", (F24-H24)*50%, IF(D14="સ્લેબ સાથેનું અધુરૂ બાંધકામ", (F24-H24)*70%, (F24-H24))), 0) -> 0
B25: પાંચમો માળ | C25: આર.સી.સી ફ્રેમ સ્ટ્રકચર | D25: 0 | E25: =INDEX(B52:D57, MATCH(C25, B52:B57, 0), MATCH(C14, B52:D52, 0)) -> 14850 | F25: =ROUNDUP(IF(D16="બિલ્ટઅપ", D25*E25, D25*1.2*E25),-1) -> 0 | G25: 0 | H25: 0 | I25: =ROUNDUP(IF(D14="સ્લેબ વગરનું અધુરૂ બાંધકામ", (F25-H25)*50%, IF(D14="સ્લેબ સાથેનું અધુરૂ બાંધકામ", (F25-H25)*70%, (F25-H25))), 0) -> 0
B26: પાંચમો માળ | C26: આર.સી.સી ફ્રેમ સ્ટ્રકચર | D26: 0 | E26: =INDEX(B52:D57, MATCH(C26, B52:B57, 0), MATCH(C14, B52:D52, 0)) -> 14850 | F26: =ROUNDUP(IF(D16="બિલ્ટઅપ", D26*E26, D26*1.2*E26),-1) -> 0 | G26: 0 | H26: 0 | I26: =ROUNDUP(IF(D14="સ્લેબ વગરનું અધુરૂ બાંધકામ", (F26-H26)*50%, IF(D14="સ્લેબ સાથેનું અધુરૂ બાંધકામ", (F26-H26)*70%, (F26-H26))), 0) -> 0
B28: કુલ્લે | D28: =SUBTOTAL(109, D18:D26) -> 427.83 | F28: =SUBTOTAL(109, F18:F26) -> 8086000 | H28: =SUBTOTAL(109, H18:H26) -> 1164370 | I28: =SUBTOTAL(109, I18:I26) -> 6921630
B30: જમીનની કિંમત | C30: =+I14 -> 5072340 | D30: ચૂકવેલ અવેજ | F30: 12137000 | G30: રજીસ્ટ્રેશન ફી | H30: રેગ્યુલર | I30: =ROUNDUP(IF(H30="રેગ્યુલર", F30*1%, IF(H30="અન્ય માફી", F30*0%, 0)),-1) -> 121370
B31: બાંધકામ કિંમત | C31: =+F28 -> 8086000 | D31: સ્ટેમ્પ ડ્યુટીનો દર | F31: 4.90% | G31: ફોલીયો ચાર્જ | H31: 35 | I31: =+H31*20 -> 700
B32: ઘસારો | C32: =+H28 -> 1164370 | D32: વાપરવાપાત્ર સ્ટેમ્પ | F32: =ROUNDUP(+F30*F31,-1) -> 594720 | G32: વકીલ ફી | I32: 0
B33: ઘસારા બાદ કિંમત | C33: =SUM(C31-C32) -> 6921630 | D33: વાપરેલ ડ્યુટી | F33: 2594800 | G33: અન્ય ખર્ચ | I33: 0
B34: કુલ કિંમત (નેટ) | C34: =ROUNDUP(IF(D14="સ્લેબ વગરનું અધુરૂ બાંધકામ", (C30+C33)*50%, IF(D14="સ્લેબ સાથેનું અધુરૂ બાંધકામ", (C30+C33)*70%, IF(D14="બંગ્લા ઉપરની ટેરેસ", (C30+C33)*40%, (C30+C33)))),-2) -> 11994000 | G34: કુલ ખર્ચ | I34: =SUM(I30:I33) -> 122070
B36: મિલકતની વિગત : | C36: પ્લોટ નંબર E2/58, ભગવતી ઈન્ડસ્ટ્રીયલ એસ્ટેટ, ભેસ્તાન, સુરત
B45: રહેણાંક જમીન | C45: ઔધોગિક જમીન | D45: વાણિજ્યક જમીન | G45: મિલકતનો વિસ્તાર | I45: બાંધકામની સ્થિતિ
B46: આર.સી.સી ફ્રેમ સ્ટ્રકચર | C46: ઔઘોગિક આર.સી.સી.શેડ | D46: આર.સી.સી ફ્રેમ સ્ટ્રકચર | G46: શહેરી | I46: પૂર્ણ બાંધકામવાળી મિલકત
B47: લોડ બેરીંગ સ્ટ્રકચર | C47: ઔઘોગિક પતરાવાળો શેડ | G47: ગ્રામ્ય | I47: સ્લેબ વગરનું અધુરૂ બાંધકામ
B48: સેમી પક્કા સ્ટ્રકચર | I48: સ્લેબ સાથેનું અધુરૂ બાંધકામ
G49: માળની વિગત | I49: બંગ્લા ઉપરની ટેરેસ
G50: અંડર ગ્રાઉન્ડ
B51: તારીખ : 15-04-2023 થી અમલમાં | G51: ગ્રાઉન્ડ ફલોર
B52: સ્ટ્રકચરનો પ્રકાર | C52: શહેરી | D52: ગ્રામ્ય | G52: મેઝેનાઈન ફલોર | I52: મિલકતનો પ્રકાર
B53: આર.સી.સી ફ્રેમ સ્ટ્રકચર | C53: 14850 | D53: 13650 | G53: અપર ગ્રાઉન્ડ | I53: ખેતીની જમીન
B54: લોડ બેરીંગ સ્ટ્રકચર | C54: 12900 | D54: 11550 | G54: પહેલો માળ | I54: રહેણાંક મિલકત
B55: સેમી પક્કા સ્ટ્રકચર | C55: 9450 | D55: 8850 | G55: બીજો માળ | I55: ઔધોગિક મિલકત
B56: ઔઘોગિક આર.સી.સી.શેડ | C56: 17250 | D56: 16800 | G56: ત્રીજો માળ
B57: ઔઘોગિક પતરાવાળો શેડ | C57: 12750 | D57: 12300 | G57: ચોથો માળ
G58: પાંચમો માળ

Sheet Appartment-Flat
B2: સ્થાવર મિલકતનાં મુલ્યાંકન માટેનું ગણત્રી પત્રક
B4: દસ્તાવેજનો પ્રકાર : | C4: 17, વેચાણનું પ્રમાણપત્ર | H4: વેલ્યુ ઝોન : | I4: 35/6
B6: સબ-રજીસ્ટ્રારશ્રી : | C6: સુરત-1 (અઠવા) | F6: ગામ : | G6: પીપલોદ | H6: ફલેટ-કમ્પોઝીટ રેટ | I6: 19000
B8: રહેણાંક ફલેટ ગ્રાઉન્ડ ફલોર | E8: લીફ્ટ સાથે | H8: લાગુ નથી
B10: સીટી સર્વે ઓફીસ : | D10: સીટી સર્વે વોર્ડ : | F10: સીટી સર્વે નંબર : | H10: કાર્ડ નંબર :
B12: સર્વે નંબર : | D12: બ્લોક નંબર : | E12: 56 | F12: ટી.પી.સ્કીમ નંબર : | G12: 53(મગોબ-ડુંભાલ) | H12: એફ.પી. નંબર : | I12: 5-જી
B14: ફલેટ | D14: કારપેટ ચો.મી. | E14: બાંધકામ દર ` | F14: બાંધકામ કિંમત ` | G14: મિલકતની ઉંમર | H14: ઘસારો ` | I14: ઘસારાબાદ કિંમત `
B16: પ્રથમ માળ | D16: 99 | E16: =ROUNDUP(IF(B14="દુકાન", I6*2, IF(B14="ફલેટ",I6*1.8 * IF(E8="લીફ્ટ સાથે", C71, D71), I6*1.5)),-1) -> 34200 | F16: =IF(D16=0,0,ROUNDUP(D16*(E16*IF(B14="ફલેટ",VLOOKUP(D16*IF(D14="કારપેટ ચો.મી.",1.2,1),$B$73:$D$76,3,TRUE),IF(B14="દુકાન",IF($F$8="દુકાન રોડ ફ્રન્ટેજ",VLOOKUP($B$16,$F$52:$H$57,2,FALSE),VLOOKUP($B$16,$F$52:$H$57,3,FALSE)),1)))*IF(D14="કારપેટ ચો.મી.",1.2,1),-1)) -> 4062960 | G16: 20 | H16: =ROUNDDOWN(+F16*IF(G16>=50,60%,G16*1.2%),-1) -> 975110 | I16: =ROUNDUP(+F16-H16,-1) -> 3087850
B18: કુલ | D18: =SUBTOTAL(109, D16:D16) -> 99 | F18: =SUBTOTAL(109, F16:F16) -> 4062960 | H18: =SUBTOTAL(109, H16:H16) -> 975110 | I18: =SUBTOTAL(109, I16:I16) -> 3087850
B20: (1) બાંધકામની કિંમત | D20: =+F18 -> 4062960 | F20: પાર્કિંગની ગણત્રી
B21: (2) ઘસારો | D21: =+H18 -> 975110 | F21: કવર્ડ રહેણાંક | G21: 8 | H21: =IF(F21="કવર્ડ રહેણાંક", E16*10%, IF(F21="કોમર્શીયલ", E16*20%, IF(F21="ઓપન રહેણાંક", E16*5%))) -> 3420 | I21: =ROUNDUP(G21*H21,-1) -> 27360
B22: (3) પાર્કિગ | D22: =+I21 -> 27360
B23: (૪) અન્ય કિંમત | D23: 0
B24: કુલ (૧)-(૨)+(૩)+(૪) | D24: =IF(H8="ફલેટ-ઓફીસ-દુકાન ઉપર ટેરેસ",SUM(D20-D21+D22)*40%,IF(H8="એપર્ટન્ટ લેન્ડ",SUM(D20-D21+D22)*30%,(SUM(D20-D21+D22)))) -> 3115210 | F24: મિલ્કતનું મુલ્યાંકન (કુલ) : | I24: =+D24 -> 3115210
B26: અવેજની રકમ | D26: 3115210 | G26: રજીસ્ટ્રેશન ફી | H26: રેગ્યુલર | I26: =ROUNDUP(IF(H26="રેગ્યુલર", D26*1%, IF(H26="સ્ત્રી એક્ઝીક્યુટન્ટ માફી", D26*0%, 0)),-1) -> 31160
B27: સ્ટેમ્પ ડ્યુટીનો દર (ટકા) | D27: 0.049 | G27: ફોલીયો ચાર્જ | H27: 35 | I27: 700
B28: વાપરવાપાત્ર સ્ટેમ્પ | D28: =ROUNDUP(+D26*D27,-2) -> 152700 | G28: અન્ય ખર્ચ | I28: 0
B29: વાપરેલ ડ્યુટી | D29: 152700 | G29: કુલ ખર્ચ | I29: =ROUNDUP((+I26+I27+I28),-1) -> 31860
B31: મિલકતની વિગત :
B44: ફલેટ
B45: ગ્રાઉન્ડ ફલોર
B46: પ્રથમ માળ | F46: કાર પાર્કિંગ
B47: બીજો માળ | F47: બાંધકામનો પ્રકાર | G47: કવર્ડ પાર્કિંગ | H47: ઓપન પાર્કિગ
B48: ત્રીજો માળ અને ઉપર | F48: રહેણાંક | G48: 0.1 | H48: 0.05
B49: ટોપ ફલોર | F49: કોમર્શિયલ | G49: 0.2 | H49: 0.2
B51: ફલેટ એપાર્ટમેન્ટ મૂલ્યાકંન | F51: દુકાનોના મૂલ્યાકંન
B52: માળની વિગત | C52: લિફ્ટ સાથે | D52: લિફ્ટ વગર | F52: માળ | G52: દુકાન રોડ ફ્રન્ટેજ | H52: દુકાન રોડ ફ્રન્ટેજ વગર
B53: ગ્રાઉન્ડ ફલોર | C53: 1 | D53: 1 | F53: ભોંયરૂ | G53: 0.8 | H53: 0.8
B54: પ્રથમ માળ | C54: 1 | D54: 1 | F54: મેઝેનાઈન | G54: 0.7 | H54: 0.7
B55: બીજો માળ | C55: 1 | D55: 0.95 | F55: ગ્રાઉન્ડ ફલોર | G55: 1 | H55: 0.75
B56: ત્રીજો માળ અને ઉપર | C56: 1 | D56: 0.9 | F56: પ્રથમ માળ | G56: 0.75 | H56: 0.7
B57: ટોપ ફલોર | C57: 0.95 | D57: - | F57: બીજો માળ અને ઉપર | G57: 0.7 | H57: 0.65
B59: જુદા જુદા માળે આવેલા ફલેટ એપાર્ટમેન્ટનાં મૂલ્યાંકન | F59: પાર્કિગની વિગત
B60: માળ | C60: લીફ્ટ સાથે | D60: લીફ્ટ વગર | F60: કવર્ડ રહેણાંક
B61: રહેણાંક ફલેટ ગ્રાઉન્ડ ફલોર | C61: 1 | D61: 1 | F61: ઓપન રહેણાંક
B62: રહેણાંક ફલેટ પ્રથમ માળ | C62: 1 | D62: 1 | F62: કોમર્શીયલ
B63: રહેણાંક ફલેટ બીજો માળ | C63: 1 | D63: 0.95
B64: રહેણાંક ફલેટ ત્રીજો અને તેનાથી ઉપર | C64: 1 | D64: 0.9
B65: રહેણાંક ફલેટ ટોપ ફલોર | C65: 0.95 | D65: 0.9
B67: માળની વિગત | C67: લીફ્ટ સાથે | D67: લીફ્ટ વગર
B68: =+B8 -> રહેણાંક ફલેટ ગ્રાઉન્ડ ફલોર | C68: =(INDEX(B61:D65, MATCH(B68, B61:B65,0),2)) -> 1 | D68: =(INDEX(B61:D65, MATCH(B68, B61:B65,0),3)) -> 1
D69: =IF(E8="લીફ્ટ સાથે", C71, D71) -> 1
B70: માળની વિગત | C70: લીફ્ટ સાથે | D70: લીફ્ટ વગર
B71: રહેણાંક ફલેટ પ્રથમ માળ | C71: =(INDEX(B61:D65, MATCH(B8, B61:B65,0),2)) -> 1 | D71: =(INDEX(B61:D87, MATCH(B8, B61:B65,0),3)) -> 1 | E71: =IF(E8="લીફ્ટ સાથે",C71, D71) -> 1
B73: ફલેટ | C73: Column1 | D73: વેલ્યુ ઝોન % | F73: =ROUNDUP(IF(E8="લીફ્ટ સાથે", C68*I16, D68*I16),-1) -> 3087850 | H73: =ROUNDUP(IF(B14="રહેણાંક ફલેટ", (F16-H16)*C71, F16-H16), -1) -> 3087850
B74: 1 | C74: 100 | D74: 0.9
B75: 100.01 | C75: 200 | D75: 1 | F75: =ROUNDUP(IF(B14="રહેણાંક_ફલેટ", I16*E71, I16),-1) -> 3087850
B76: 200.01 | C76: 999999 | D76: 1.2
B79: ક્ષેત્રફળ | C79: ફલેટ
B80: 50 | C80: =VLOOKUP(B80,B73:D76,3) -> 0.9

Sheet Office-Shop (hidden)
B2: સ્થાવર મિલકતનાં મુલ્યાંકન માટેનું ગણત્રી પત્રક
B4: દસ્તાવેજનો પ્રકાર : | C4: 20(ખ), માલિકી ફેરખત-ગુજરાત સહકારી મંડળી અઘિનિયમ,1961 | H4: વેલ્યુ ઝોન : | I4: 64/43
B6: સબ-રજીસ્ટ્રારશ્રી : | C6: સુરત-1 (અઠવા) | F6: ગામ : | G6: પીપલોદ | H6: =IF(AND(B14="બેંક, હોસ્પિટલ, નર્સિંગહોમ", OR(B16="ગ્રાઉન્ડ ફલોર", B16="પ્રથમ માળ")),"દુકાન કમ્પોઝીટ", IF(B14="શોપીંગમોલ, આર્કેડ, મલ્ટીપ્લેક્ષ", "દુકાન-કમ્પોઝીટ દર ", IF(B14="દુકાન", "દુકાન-કમ્પોઝીટ દર", "ઓફીસ-કમ્પોઝીટ દર" ))) -> દુકાન-કમ્પોઝીટ દર | I6: 58000
B8: દુકાન રોડ ફ્રન્ટેજ | E8: ભોંયતળિયુ અને પ્રથમ માળ ઉપર બેંક હોસ્પિટલ નર્સિગ હોમ આવેલ હોય તો ઓફિસના ભાવ લેવા
B10: સીટી સર્વે ઓફીસ : | D10: સીટી સર્વે વોર્ડ : | F10: સીટી સર્વે નંબર : | H10: કાર્ડ નંબર :
B12: સર્વે નંબર : | C12: 314 | D12: બ્લોક નંબર : | F12: ટી.પી.સ્કીમ નંબર : | G12: 06 (વેસુ) | H12: એફ.પી. નંબર : | I12: 18
B14: દુકાન | D14: કારપેટ એરીયા | E14: બાંધકામ દર ` | F14: બાંધકામ કિંમત ` | G14: મિલકતની ઉંમર | H14: ઘસારો ` | I14: ઘસારાબાદ કિંમત `
B16: ગ્રાઉન્ડ ફલોર | D16: 19.6 | E16: =ROUNDUP(IF(B14="દુકાન", I6*2, IF(B14="ઓફીસ", I6*1.5, IF(B14="શોપીંગમોલ_આર્કેડ_મલ્ટીપ્લેક્ષ", I6*2, IF(AND(B14="બેંક_હોસ્પિટલ_નર્સિંગહોમ", OR(B16="ગ્રાઉન્ડ ફલોર", B16="પ્રથમ માળ")), I6*2, I6*1.5)))),-1) -> 116000 | F16: =IF(D16=0,0, ROUNDUP(D16 * (E16 * IF(B14="દુકાન", IF(B8="દુકાન રોડ ફ્રન્ટેજ",IFERROR(VLOOKUP(B16,F52:H57,2,FALSE),0), IFERROR(VLOOKUP(B16,F52:H57,3,FALSE),0)), IF(B14="શોપીંગમોલ,આર્કેડ,મલ્ટીપ્લેક્ષ",IFERROR(VLOOKUP(B16,B75:C80,2,FALSE),0), IF(B14="બેંક,હોસ્પિટલ,નર્સિંગહોમ",IF(OR(B16="ગ્રાઉન્ડ ફલોર",B16="પ્રથમ માળ"), IFERROR(VLOOKUP(B16,B82:D85,2,FALSE),0), IFERROR(VLOOKUP(B16,B82:D85,3,FALSE),0)),1)))) * IF(D14="કારપેટ એરીયા",1.2,1),-1)) -> 2728320 | G16: 15 | H16: =ROUNDDOWN(+F16*IF(G16>=50,60%,G16*1.2%),-1) -> 491090 | I16: =ROUNDUP(F16-H16,-1) -> 2237230
B18: કુલ | D18: =+D16 -> 19.6 | F18: =+F16 -> 2728320 | H18: =+H16 -> 491090 | I18: =+I16 -> 2237230
B20: (1) બાંધકામની કિંમત | D20: =+F18 -> 2728320 | F20: પાર્કિંગની ગણત્રી
B21: (2) ઘસારો | D21: =+H18 -> 491090 | F21: કોમર્શીયલ | G21: 8 | H21: =IF(F21="કવર્ડ રહેણાંક", E16*10%, IF(F21="કોમર્શીયલ", E16*20%, IF(F21="ઓપન રહેણાંક", E16*5%))) -> 23200 | I21: =ROUNDUP(G21*H21,-1) -> 185600
B22: (3) પાર્કિગ | D22: =+I21 -> 185600
B23: (૪) અન્ય કિંમત | D23: 0
B24: કુલ (૧)-(૨)+(૩)+(૪) | D24: =SUM(D20-D21)+(D22) -> 2422830 | F24: મિલ્કતનું મુલ્યાંકન (કુલ) : | I24: =+D24 -> 2422830
B26: ચૂકવેલ અવેજની રકમ | D26: 2422830 | G26: રજીસ્ટ્રેશન ફી | H26: રેગ્યુલર | I26: =ROUNDUP(IF(H26="રેગ્યુલર", D26*1%, IF(H26="સ્ત્રી એક્ઝીક્યુટન્ટ માફી", D26*0%, 0)),-1) -> 24230
B27: સ્ટેમ્પ ડ્યુટીનો દર (ટકા) | D27: 0.049 | G27: ફોલીયો ચાર્જ | H27: 35 | I27: =+H27*20 -> 700
B28: વાપરવાપાત્ર સ્ટેમ્પ | D28: =ROUNDUP(D26*D27,-1) -> 118720 | G28: અન્ય ખર્ચ | I28: 0
B29: વાપરેલ ડ્યુટી | D29: 118720 | G29: કુલ ખર્ચ | I29: =ROUNDUP(SUM(I28+I27+I26),-1) -> 24930
B31: મિલકતની વિગત :
B44: દુકાન | C44: ઓફીસ
B45: ભોંયરૂ | C45: ગ્રાઉન્ડ ફલોર
B46: મેઝેનાઈન | C46: પ્રથમ માળ | F46: કાર પાર્કિંગ
B47: ગ્રાઉન્ડ ફલોર | C47: બીજો માળ | F47: બાંધકામનો પ્રકાર | G47: કવર્ડ પાર્કિંગ | H47: ઓપન પાર્કિગ
B48: પ્રથમ માળ | C48: ત્રીજો માળ | F48: રહેણાંક | G48: 0.1 | H48: 0.05
B49: બીજો માળ અને ઉપર | C49: ત્રીજા માળથી ઉપર | F49: કોમર્શિયલ | G49: 0.2 | H49: 0.2
B51: ફલેટ એપાર્ટમેન્ટ મૂલ્યાકંન | F51: દુકાનોના મૂલ્યાકંન
B52: માળની વિગત | C52: લિફ્ટ સાથે | D52: લિફ્ટ વગર | F52: માળ | G52: દુકાન રોડ ફ્રન્ટેજ | H52: દુકાન રોડ ફ્રન્ટેજ વગર
B53: ગ્રાઉન્ડ ફલોર | C53: 1 | D53: 1 | F53: ભોંયરૂ | G53: 0.8 | H53: 0.8
B54: પ્રથમ માળ | C54: 1 | D54: 1 | F54: મેઝેનાઈન | G54: 0.7 | H54: 0.7
B55: બીજો માળ | C55: 1 | D55: 0.95 | F55: ગ્રાઉન્ડ ફલોર | G55: 1 | H55: 0.75
B56: ત્રીજો માળ અને ઉપર | C56: 1 | D56: 0.9 | F56: પ્રથમ માળ | G56: 0.75 | H56: 0.7
B57: ટોપ ફલોર | C57: 0.95 | D57: - | F57: બીજો માળ અને ઉપર | G57: 0.7 | H57: 0.65
B60: દુકાન | C60: ઓફીસ | D60: શોપીંગમોલ, આર્કેડ, મલ્ટીપ્લેક્ષ | E60: બેંક, હોસ્પિટલ, નર્સિંગહોમ | G60: જંત્રી
B61: ભોંયરૂ | C61: ગ્રાઉન્ડ ફલોર | D61: ભોંયરૂ | E61: ગ્રાઉન્ડ ફલોર | G61: દુકાન-કમ્પોઝીટ
B62: મેઝેનાઈન | C62: પ્રથમ માળ | D62: મેઝેનાઈન | E62: પ્રથમ માળ | G62: ઓફીસ-કમ્પોઝીટ
B63: ગ્રાઉન્ડ ફલોર | C63: બીજો માળ | D63: ગ્રાઉન્ડ ફલોર | E63: બીજો માળ | G63: રહેણાંક-કમ્પોઝીટ
B64: પ્રથમ માળ | C64: ત્રીજો માળ | D64: પ્રથમ માળ | E64: ત્રીજો માળ
B65: બીજો માળ અને ઉપર | C65: ત્રીજા માળથી ઉપર | D65: બીજો માળ અને ઉપર | E65: ત્રીજા માળથી ઉપર | G65: પાર્કિગની વિગત
G66: કવર્ડ રહેણાંક
G67: ઓપન રહેણાંક
B68: માળ | C68: દુકાન રોડ ફ્રન્ટેજ | D68: દુકાન રોડ ફ્રન્ટેજ વગર | G68: કોમર્શીયલ
B69: ભોંયરૂ | C69: 0.8 | D69: 0.8
B70: મેઝેનાઈન | C70: 0.7 | D70: 0.7 | G70: બાંધકામ એરીયા
B71: ગ્રાઉન્ડ ફલોર | C71: 1 | D71: 0.75 | G71: બિલ્ટઅપ એરીયા
B72: પ્રથમ માળ | C72: 0.75 | D72: 0.7 | G72: કારપેટ એરીયા
B73: બીજો માળ અને ઉપર | C73: 0.7 | D73: 0.65
B75: શોપીંગમોલ_આર્કેડ_મલ્ટીપ્લેક્ષ | C75: દુકાન
B76: ભોંયરૂ | C76: 1
B77: મેઝેનાઈન | C77: 1
B78: ગ્રાઉન્ડ ફલોર | C78: 1
B79: પ્રથમ માળ | C79: 1
B80: બીજો માળ અને ઉપર | C80: 1
B82: બેંક_હોસ્પિટલ_નર્સિંગહોમ | C82: દુકાન | D82: ઓફીસ
B83: ગ્રાઉન્ડ ફલોર | C83: 1 | D83: 1
B84: પ્રથમ માળ | C84: 1 | D84: 1
B85: પ્રથમ માળની ઉપર | C85: 1 | D85: 1

Sheet Lease-Residential (hidden)
B2: ગુજરાત સ્ટામ્પ અધિનિયમ, ૧૯૫૮, કલમ : ૩, આર્ટીકલ : ૩૦ પટ્ટો (લીઝ) રહેણાંક માટે સ્ટામ્પની ગણત્રી
B4: વિગત | C4: રકમ ₹ | D4: માસ | E4: સરાસરી ભાડુ `
B6: ભાડા પટ્ટો 5 વર્ષ ઓછો નહી પરંતુ 15 વર્ષથી વધારે નહી
B8: =INDEX(B29:I36, MATCH(B6, ભાડા_કરારનો_સમયગાળો, 0), 5) -> માસિક ભાડુ | C8: 25000 | D8: =INDEX(B29:I36, MATCH(B6, B29:B36, 0), 6) -> 12 | E8: =C8*D8 -> 300000
B9: ઉમેરો : એડવાન્સ ભાડુ, ડીપોઝીટ, પ્રિમિયમ વિગેરે | E9: 0
B10: ઉમેરો : વેરાબીલ, મહેસુલ વિગેરે | E10: 0
B11: ઉમેરો : અન્ય | E11: 0
B12: કુલ રકમ | E12: =SUM(E8:F11) -> 300000
B14: સ્ટામ્પ ડ્યુટીનો દર ટકામાં અથવા મિનીમમ રકમ ₹ | E14: =INDEX(B29:I36,MATCH(B6,B29:B36,0),7) -> 2.8
B16: સ્ટામ્પ ડ્યુટીની કુલ રકમ | E16: =IF(B8="મિનીમમ સ્ટેમ્પ", E14, ROUNDUP(E12 * E14%, -2)) -> 8400
B18: મિનીમમ સ્ટેમ્પ રકમ | E18: =INDEX(B29:I36,MATCH(B6,B29:B36,0),8) -> 14000
B20: : મિલકતની વિગત :
B23: સ્પષ્ટીકરણ (૧) : અગાઉ આપેલું ભાડુ આ આર્ટીકલના અર્થ મુજબ પ્રિમિયમ અથવા ધીરેલા નાણા તરીકે ગણાશે, સિવાય કે પટ્ટામાં વિશિષ્ટ રીતે એવી જોગવાઈ કરી હોય કે અગાઉથી આપેલુ ભાડુ, ભાડાના છેલ્લા હપ્તા અથવા હપ્તાઓમાં વાળી આપવામાં આવશે.
B24: સ્પષ્ટીકરણ (૨) : આ આર્ટીકલના ખંડ (ક) ના પેટા ખંડો (5) અને (6) ના હેતુ માટે, અવેજ એટલે ડીપોઝીટ (થાપણ) અથવા પ્રમિયમ તરીકે અથવા અગાઉથી આપેલ ભાડુ અથવા સરેરાશ વાર્ષિક ભાડાની રકમ વગેરે.
B28: LeasePeriod | C28: Rate | D28: AddRate | E28: TotalDuty | F28: RentAmt | G28: AnualRent | H28: StampDutyRate | I28: MinimumStamp
B29: ભાડા પટ્ટો 1 વર્ષથી ઓછા સમયનો | C29: 500 | D29: 0.4 | E29: =C29+(+C29*D29) -> 700 | F29: મિનીમમ સ્ટેમ્પ | G29: 11 | H29: 700 | I29: 700
B30: ભાડા પટ્ટો 1 વર્ષ ઓછો નહી પરંતુ 5 વર્ષથી વધારે નહી | C30: 1 | D30: 0.4 | E30: 1.4 | F30: માસિક ભાડુ | G30: 12 | H30: =+'Lease-Commercial'!$E30 -> 1.4 | I30: 1400
B31: ભાડા પટ્ટો 5 વર્ષ ઓછો નહી પરંતુ 15 વર્ષથી વધારે નહી | C31: 2 | D31: 0.4 | E31: 2.8 | F31: માસિક ભાડુ | G31: 12 | H31: =+'Lease-Commercial'!$E31 -> 2.8 | I31: 14000
B32: ભાડા પટ્ટો 15 વર્ષ ઓછો નહી પરંતુ 30 વર્ષથી વધારે નહી | C32: 3 | D32: 0.4 | E32: 4.2 | F32: માસિક ભાડુ | G32: 12 | H32: =+'Lease-Commercial'!$E32 -> 4.2 | I32: =20000+(20000*40%) -> 28000
B33: ભાડા પટ્ટો 30 વર્ષ ઓછો નહી પરંતુ 99 વર્ષથી વધારે નહી | C33: 2.5 | D33: 0.4 | E33: 3.5 | F33: અવેજ કિંમત અથવા મિલકતની કિંમત જે વધુ હોય તેના | G33: 1 | H33: =+'Lease-Commercial'!$E33 -> 3.5 | I33: 0
B34: ભાડા પટ્ટો 99 વર્ષથી વધારે | C34: 3.5 | D34: 0.4 | E34: 4.9 | F34: અવેજ કિંમત અથવા મિલકતની કિંમત જે વધુ હોય તેના | G34: 1 | H34: 4.9 | I34: 0
B35: ભાડા પટ્ટો દંડ અથવા પ્રિમિયમ માટે અથવા ધીરેલા કે ધીરવાનાં નાણા માટે... | C35: 3.5 | D35: 0.4 | E35: 4.9 | F35: અવેજ કિંમત અથવા મિલકતની કિંમત જે વધુ હોય તેના | G35: 1 | H35: 4.9 | I35: 0
B36: ભાડા પટ્ટો ઠરાવેલા ભાડા ઉપરાંત દંડ અથવા પ્રિમિયમ માટે અથવા ધીરેલા કે ધીરવાનાં નાણા માટે... | C36: 3.5 | D36: 0.4 | E36: 4.9 | F36: અવેજ કિંમત અથવા મિલકતની કિંમત જે વધુ હોય તેના | G36: 1 | H36: 4.9 | I36: 0
B38: મિનીમમ સ્ટેમ્પ

Sheet Lease-Commercial (hidden)
B2: ગુજરાત સ્ટામ્પ અધિનિયમ, ૧૯૫૮, કલમ : ૩, આર્ટીકલ : ૩૦ પટ્ટો (લીઝ) વાણિજ્યક માટે સ્ટામ્પની ગણત્રી
B4: વિગત | C4: રકમ ₹ | D4: માસ | E4: સરાસરી ભાડુ `
B6: ભાડા પટ્ટો 5 વર્ષ ઓછો નહી પરંતુ 15 વર્ષથી વધારે નહી
B8: =INDEX(B29:I36, MATCH(B6, ભાડા_કરારનો_સમયગાળો, 0), 5) -> માસિક ભાડુ | C8: 48480 | D8: =INDEX(B29:I36, MATCH(B6, B29:B36, 0), 6) -> 12 | E8: =ROUNDUP((C8*D8),-2) -> 581800
B9: ઉમેરો : એડવાન્સ ભાડુ, ડીપોઝીટ, પ્રિમિયમ વિગેરે | E9: 0
B10: ઉમેરો : વેરાબીલ, મહેસુલ વિગેરે | E10: 0
B11: ઉમેરો : અન્ય | E11: 0
B12: કુલ રકમ | E12: =SUM(E8:F11) -> 581800
B14: સ્ટામ્પ ડ્યુટીનો દર ટકામાં અથવા મિનીમમ રકમ ₹ | E14: =INDEX(B29:I36,MATCH(B6,B29:B36,0),7) -> 2.8
B16: સ્ટામ્પ ડ્યુટીની કુલ રકમ | E16: =ROUNDUP(IF(B8="મિનીમમ સ્ટેમ્પ",E14,ROUNDUP(E8*E14%,-2)+(E9+E11)*4.9%),-1) -> 16300
B18: મિનીમમ સ્ટેમ્પ રકમ | E18: =INDEX(B29:I36,MATCH(B6,B29:B36,0),8) -> 14000
B20: : મિલકતની વિગત :
B23: સ્પષ્ટીકરણ (૧) : અગાઉ આપેલું ભાડુ આ આર્ટીકલના અર્થ મુજબ પ્રિમિયમ અથવા ધીરેલા નાણા તરીકે ગણાશે, સિવાય કે પટ્ટામાં વિશિષ્ટ રીતે એવી જોગવાઈ કરી હોય કે અગાઉથી આપેલુ ભાડુ, ભાડાના છેલ્લા હપ્તા અથવા હપ્તાઓમાં વાળી આપવામાં આવશે.
B24: સ્પષ્ટીકરણ (૨) : આ આર્ટીકલના ખંડ (ક) ના પેટા ખંડો (5) અને (6) ના હેતુ માટે, અવેજ એટલે ડીપોઝીટ (થાપણ) અથવા પ્રમિયમ તરીકે અથવા અગાઉથી આપેલ ભાડુ અથવા સરેરાશ વાર્ષિક ભાડાની રકમ વગેરે.
B28: LeasePeriod | C28: Rate | D28: AddRate | E28: TotalDuty | F28: RentAmt | G28: AnualRent | H28: StampDutyRate | I28: MinimumStamp
B29: ભાડા પટ્ટો 1 વર્ષથી ઓછા સમયનો | C29: 1000 | D29: 0.4 | E29: =C29+(+C29*D29) -> 1400 | F29: મિનીમમ સ્ટેમ્પ | G29: 11 | H29: 1400 | I29: 1400
B30: ભાડા પટ્ટો 1 વર્ષ ઓછો નહી પરંતુ 5 વર્ષથી વધારે નહી | C30: 1 | D30: 0.4 | E30: 1.4 | F30: માસિક ભાડુ | G30: 12 | H30: =+'Lease-Commercial'!$E30 -> 1.4 | I30: 7000
B31: ભાડા પટ્ટો 5 વર્ષ ઓછો નહી પરંતુ 15 વર્ષથી વધારે નહી | C31: 2 | D31: 0.4 | E31: 2.8 | F31: માસિક ભાડુ | G31: 12 | H31: =+'Lease-Commercial'!$E31 -> 2.8 | I31: 14000
B32: ભાડા પટ્ટો 15 વર્ષ ઓછો નહી પરંતુ 30 વર્ષથી વધારે નહી | C32: 3 | D32: 0.4 | E32: 4.2 | F32: માસિક ભાડુ | G32: 12 | H32: =+'Lease-Commercial'!$E32 -> 4.2 | I32: =20000+(20000*40%) -> 28000
B33: ભાડા પટ્ટો 30 વર્ષ ઓછો નહી પરંતુ 99 વર્ષથી વધારે નહી | C33: 2.5 | D33: 0.4 | E33: 3.5 | F33: અવેજ કિંમત અથવા મિલકતની કિંમત જે વધુ હોય તેના | G33: 1 | H33: =+'Lease-Commercial'!$E33 -> 3.5 | I33: =ROUNDUP(IF(B8="મિલકતની કિંમત",C8*D8,F16)*H33%, -2) -> 0
B34: ભાડા પટ્ટો 99 વર્ષથી વધારે | C34: 3.5 | D34: 0.4 | E34: 4.9 | F34: અવેજ કિંમત અથવા મિલકતની કિંમત જે વધુ હોય તેના | G34: 1 | H34: 4.9 | I34: =ROUNDUP(IF(B8="મિલકતની કિંમત",C8*D8,F16)*H34%, -2) -> 0
B35: ભાડા પટ્ટો દંડ અથવા પ્રિમિયમ માટે અથવા ધીરેલા કે ધીરવાનાં નાણા માટે... | C35: 3.5 | D35: 0.4 | E35: 4.9 | F35: અવેજ કિંમત અથવા મિલકતની કિંમત જે વધુ હોય તેના | G35: 1 | H35: 4.9 | I35: =ROUNDUP(IF(B9="મિલકતની કિંમત",C9*D9,F17)*H35%, -2) -> 0
B36: ભાડા પટ્ટો ઠરાવેલા ભાડા ઉપરાંત દંડ અથવા પ્રિમિયમ માટે અથવા ધીરેલા કે ધીરવાનાં નાણા માટે... | C36: 3.5 | D36: 0.4 | E36: 4.9 | F36: અવેજ કિંમત અથવા મિલકતની કિંમત જે વધુ હોય તેના | G36: 1 | H36: 4.9 | I36: =ROUNDUP(IF(B10="મિલકતની કિંમત",C10*D10,F18)*H36%, -2) -> 0
B38: મિનીમમ સ્ટેમ્પ

Sheet Area Unit Convertor (hidden)
B2: Area Unit Converter
B4: From | C4: Guntha | D4: Enter No. of Units | E4: 1
B6: Square Meter: | D6: 101.1714
B7: Square Feet: | D7: 1088.999886
B8: Hectare: | D8: 0.01011714
B9: Vigha(1): | D9: 0.06250086488
B10: Vigha(2): | D10: 0.04254474348
B11: Acre: | D11: 0.02499999739
B12: Guntha: | D12: 1
B13: Square Yard: | D13: 120.9999874
B14: Square Centimeter: | D14: 1011714
B15: Are: | D15: 1.011714
B16: Square Inch: | D16: 156815.9836
B17: Square Kilometer: | D17: 0.0001011714

Sheet Age Calculator (hidden)
B2: Age Calculator
B4: Date of Birth (From Date) | C4: Month | D4: Year
B6: 18 | C6: April | D6: 1967
B8: To Date (Current Date) | C8: Month | D8: Year
B10: 31 | C10: January | D10: 2026
B13: Age | D13: 58 Years
B14: Months | D14: 7 Months
B15: Days | D15: 21 Days
B16: Total Months and Days | D16: 704 Months, 21 Days
B17: Total Weeks and Days | D17: 3060 Weeks, 0 Days
B18: Total Days | D18: 21420 Days
B19: Total Hours | D19: 514080 Hours
B20: Total Minutes | D20: 30844800 Minutes
B21: Total Seconds | D21: 1850688000 Seconds

Sheet Old Jantri Calculator (hidden)
B2: સ્થાવર મિલકતનાં મુલ્યાંકન માટેનું ગણત્રી પત્રક
B4: અ.નં. | C4: વિગત
B6: 1 | C6: ON LINE APPLICATION NO./CASE NO. | E6: દસ્તાવેજ નંબર :
B7: 2 | C7: પક્ષકારનું નામ
B8: 3 | C8: મિલકતનું વર્ણન | F8: વેલ્યુ ઝોન નંબર
B11: 4 | C11: વિસ્તાર | D11: હાલની કિંમત (પ્રતિ ચોરસ મીટર)
C12: 18 મીટર રસ્તા પર | D12: જમીન (પ્રતિ ચોરસ મીટર)
B13: 5 | C13: છેલ્લી અપાયેલ નોટીસની તારીખ
B14: 6 | C14: ઉપરદળનું વર્ગીકરણ જૂથ 1 થી 6 | D14: જૂથ-6 | E14: વર્ષ | F14: 00-01
C15: (A) પ્લીન્થ એરીયા | F15: 65.784
C16: (B) બાંધકામની અંદાજી કિંમત (દર) | E16: ` | F16: =INDEX(F50:P60,MATCH(D14,D50:D60,0),MATCH(F14,F49:P49,0)) -> 5428
C17: (C) = (A x B) બાંધકામની અંદાજી કિંમત | D17: C = (A x B) | E17: ` | F17: =(+F16*F15) -> 357075.552
B19: 7 | C19: (D) ઉપરદળ બાંધકામ અંગે અંદાજી વિકાસ ખર્ચ | D19: (C-ની ટકાવારીમાં)
C20: આંતરીક વિજળીકરણ 10% થી 15% | D20: 0.15 | E20: ` | F20: =(+F17*D20) -> 53561.3328
C21: (વિકાસ ખર્ચ (કમ્પાઉન્ડ, દિવાલ બાહ્ય પાણી પુરવઠા, ગંદાપાણી | D21: 0 | E21: ` | F21: =(+F17*D21) -> 0
C22: નિકાલની વ્યવસ્થા, આંતરીક રસ્તા, કમ્પાઉન્ડ લાઈટ વિગેરે) | D22: 0.15 | E22: ` | F22: =(+F17*D22) -> 53561.3328
C23: સુપરવિઝન, આર્કીટેકટ ફી, જોડાણ ફી, રજીસ્ટ્રેશન ચાર્જ વિગેરે | D23: 0.1 | E23: ` | F23: =(+F17*D23) -> 35707.5552
C24: મકાનમાં લિફ્ટ હોય તો તે અંગેનું ખર્ચ | D24: 0 | E24: ` | F24: =(+F17*D24) -> 0
B26: 8 | C26: ઉપરદળનાં બાંધકામની કુલ અંદાજીત કિંમત | D26: E = (C + D) | E26: ` | F26: =F17 + SUM(F20:F24) -> 499905.7728
B27: 9 | C27: (F) ઉપરદળનું ઉપયોગી આયુષ્ય વર્ષમાં (મિલકતનું આયુષ્ય) | D27: =INDEX(E50:E60, MATCH(D14, D50:D60, 0)) -> 80
B28: 10 | C28: ઉપરદળનું બાંધકામ વર્ષ- | D28: 1983
C29: મિલકતની એલોટમેન્ટ વર્ષ અથવા શેર સર્ટીફીકેટનું વર્ષ | D29: 2001
C30: ઘસારાનાં વર્ષ | D30: =+D29-D28 -> 18
B31: 11 | C31: (G) ઉપરદળની આજસુધીની જીંદગી માટેનો ઘસારો | D31: G =.9*E*T/F | E31: ` | F31: =(+F26*0.9*D30/D27) -> 101230.919
B32: 12 | C32: ઉપરદળની નેટ કિંમત | D32: N=(E-G) | E32: ` | F32: =(+F26-F31) -> 398674.8538
B34: 13 | C34: જમીનની કિંમત = | D34: ક્ષેત્રફળ ચો.મી. | E34: જંત્રી દર ` | F34: જમીનની કિંમત `
C35: મિલકતનાં સંલગ્ન પ્લોટનું ક્ષેત્રફળ X જમીનની કિંમતનો દર | D35: 0 | E35: 1000 | F35: =+D35*E35 -> 0
B37: 14 | C37: મિલકતનું મૂલ્યાંકન... (12 +13) | D37: અવેજની કિંમત ` = | F37: =ROUNDUP(+F35+F32,-1) -> 398680
B39: 15 | C39: ભરવાપાત્ર રકમ ` | D39: 0.1 | E39: ` | F39: =(+F37*D39)*20% -> 7973.6
C40: વ્યાજનો સમયગાળો (માસિક) | D40: =DATEDIF(E40,F40,"m") + 1 -> 1 | E40: 2025-12-25 | F40: 2025-12-25
C41: વ્યાજની રકમ ₹ | D41: 0 | E41: ` | F41: =+D40*D41*F39 -> 0
C42: દંડની રકમ (ગણી) | D42: 0 | E42: ` | F42: =F39*D42 -> 0
C43: અન્ય રકમ ` | E43: ` | F43: 0
B44: કુલ ભરવાપાત્ર રકમ ` = | F44: 0
B49: ક્રમ | C49: મિલકતનો પ્રકાર | D49: જૂથ | E49: આયુષ્ય | F49: 90-91 | G49: 91-92 | H49: 92-93 | I49: 93-94 | J49: 94-95 | K49: 95-96 | L49: 96-97 | M49: 97-98 | N49: 98-99 | O49: 99-00 | P49: 00-01
B50: 1 | C50: રહેણાંક મિલકત-01 | D50: જૂથ-1 | E50: 50 | F50: 300 | G50: 300 | H50: 300 | I50: 300 | J50: 300 | K50: 354 | L50: 414 | M50: 414 | N50: 451 | O50: 505 | P50: 566
B51: 2 | C51: રહેણાંક મિલકત-02 | D51: જૂથ-2 | E51: 50 | F51: 805 | G51: 805 | H51: 705 | I51: 805 | J51: 805 | K51: 950 | L51: 1112 | M51: 1112 | N51: 1212 | O51: 1357 | P51: 1520
B52: 3 | C52: રહેણાંક મિલકત-03 | D52: જૂથ-3 | E52: 50 | F52: 1490 | G52: 1490 | H52: 1490 | I52: 1490 | J52: 1490 | K52: 1758 | L52: 2057 | M52: 2057 | N52: 2242 | O52: 2511 | P52: 2812
B53: 4 | C53: રહેણાંક મિલકત-04 | D53: જૂથ-4 | E53: 70 | F53: 1660 | G53: 1660 | H53: 1660 | I53: 1660 | J53: 1660 | K53: 1959 | L53: 2292 | M53: 2292 | N53: 2498 | O53: 2798 | P53: 3134
B54: 5 | C54: રહેણાંક મિલકત-05 | D54: જૂથ-5 | E54: 70 | F54: 1890 | G54: 1890 | H54: 1890 | I54: 1890 | J54: 1890 | K54: 2230 | L54: 2609 | M54: 2609 | N54: 2844 | O54: 3185 | P54: 3567
B55: 6 | C55: રહેણાંક મિલકત-06 | D55: જૂથ-6 | E55: 80 | F55: 2875 | G55: 2875 | H55: 2875 | I55: 2875 | J55: 2875 | K55: 3393 | L55: 3970 | M55: 3970 | N55: 4327 | O55: 4846 | P55: 5428
B56: 7 | C56: વ્યાપારી-1 (અ) | D56: જૂથ-1 (અ) | E56: 50 | F56: 1135 | G56: 1135 | H56: 1135 | I56: 1135 | J56: 1135 | K56: 1339 | L56: 1567 | M56: 1567 | N56: 1708 | O56: 1913 | P56: 2143
B57: 8 | C57: વ્યાપારી-2 (બ) | D57: જૂથ-2 (બ) | E57: 70 | F57: 2160 | G57: 2160 | H57: 2160 | I57: 2160 | J57: 2160 | K57: 2549 | L57: 2982 | M57: 2982 | N57: 3250 | O57: 3640 | P57: 4077
B58: 9 | C58: ઔધોગિક-અ | D58: જૂથ-(અ) | E58: 50 | F58: 1040 | G58: 1040 | H58: 1040 | I58: 1040 | J58: 1040 | K58: 1227 | L58: 1436 | M58: 1436 | N58: 1565 | O58: 1753 | P58: 1963
B59: 10 | C59: ઔધોગિક-બ | D59: જૂથ-(બ) | E59: 50 | F59: 1960 | G59: 1960 | H59: 1960 | I59: 1960 | J59: 1960 | K59: 2313 | L59: 2706 | M59: 2706 | N59: 2950 | O59: 3304 | P59: 3700
B60: 11 | C60: ઔધોગિક-ક | D60: જૂથ-(ક) | E60: 70 | F60: 2500 | G60: 2500 | H60: 2500 | I60: 2500 | J60: 2500 | K60: 2950 | L60: 3452 | M60: 3452 | N60: 3763 | O60: 4215 | P60: 4720

Sheet _HELPER_ (hidden)
A1: 14940000
A2: 732060 | B2: 17, વેચાણનું પ્રમાણપત્ર
B3: 20(ક), માલિકી ફેરખત-સ્થાવર મિલકત
B4: 20(કક), માલિકી ફેરખત-જંગમ મિલકત
B5: 20(ખ), માલિકી ફેરખત-ગુજરાત સહકારી મંડળી અઘિનિયમ,1961
B6: 20(ગ)(1), માલિકી ફેરખત-મુંબઈ નોન ટ્રેડિગ કોર્પોરેશન અધિનિયમ, 1959
B7: 20(ગ)(2), માલિકી ફેરખત-ગુજરાત હાઉસિંગ અધિનિયમ, 1961
B8: 20(ગ)(2), માલિકી ફેરખત-ગુજરાત રૂરલ બોર્ડ અધિનિયમ, 1972
B9: 20(ગ)(3), માલિકી ફેરખત-ગુજરાત ઓનરશીપ ફલેટ અધિનિયમ, 1973
B10: 20(ગગ), માલિકી ફેરખત-સ્થાવર-મિલકતને લગતું
B11: 26, મિલકત વિનિમય લેખ-સૌથી વધારે કિંમતની મિલકત
B12: 28, બક્ષિશનો લેખ
B13: 43, વહેંચણીનો લેખ-સૌથી મોટો હિસ્સો બાદ કરી બાકી ઉપર
B14: 44(1)(ખ), ભાગીદારી-મૂડી સ્થાવર મિલકત
B15: 44(1)(ગ), ભાગીદારી-મૂડી જંગમ-સ્થાવર, પૈકી સ્થાવર મિલકત ઉપર
B16: 44(3)(ક), ભાગીદારી-વિસર્જન સ્થાવર મિલકત લઈ જવાં પર
B17: 45(છ)(1), પાવર ઓફ એટોર્ની
B18: 45(છ)(2)(ખ), પાવર ઓફ એટોર્ની
B19: 45(જ), પાવર ઓફ એટોર્ની
B20: 49(ખ), ફારગતી
B21: 52(ક)(2), વ્યવસ્થાપત્ર
B22: 57, પટ્ટાની તબદિલી

Sheet HELPER (hidden)
A1: 11994000
A2: 594720
